bitfinex/quotes_ETHUSD_20240530
["timestamp","ask_amount","ask_price","bid_price","bid_amount"]
[1717089873960,2.62987,3802.5,3801.5,1.315618]
[1717089874367,2.62959,3802.9,3801.7,2.63039]
[1717089874684,2.62959,3802.9,3802.0,2.63015]
[1717089875292,2.62931,3803.3,3802.2,2.63003]
[1717089875491,2.62931,3803.3,3802.3,2.64560763]
[1717089875689,2.62931,3803.3,3802.4,2.62989]
[1717089876079,2.62931,3803.3,3802.5,35.0]
[1717089877096,2.62955,3803.0,3801.9,2.63021]
[1717089877296,2.62976,3802.7,3802.0,0.993021]
[1717089877500,2.62918,3803.5,3802.2,2.63003]
[1717089877809,2.62891,3803.9,3802.3,2.64560763]
[1717089878037,2.62891,3803.9,3802.8,2.62959]
[1717089878614,2.62891,3803.9,3803.0,2.62945]
[1717089879175,2.62891,3803.9,3802.6,2.62976]
[1717089879390,2.62891,3803.9,3803.1,35.0]
[1717089880081,2.62913,3803.6,3803.1,35.0]
[1717089881338,2.62913,3803.6,3803.1,2.64560763]
[1717089881628,2.62913,3803.6,3803.2,35.0]
[1717089881823,2.62913,3803.6,3802.6,2.62976]
[1717089882427,2.62913,3803.6,3802.7,35.0]
[1717089883801,0.00380324,3805.1,3803.1,2.62939]
[1717089884038,0.02380324,3805.1,3803.2,0.05256527]
[1717089884197,0.02380324,3805.1,3802.9,4.7336]
[1717089884198,0.02380324,3805.1,3803.3,0.05256018]
[1717089884411,2.62821,3804.9,3803.8,2.62894]
[1717089884605,2.62821,3804.9,3803.9,35.262894]
[1717089886107,2.62821,3804.9,3804.0,2.62879]
[1717089886509,0.02380324,3805.1,3804.0,1.0]
[1717089886711,0.02380324,3805.1,3804.7,2.62828]
[1717089888030,0.02380324,3805.1,3804.9,2.62818]
[1717089888980,4.7339543,3806.7,3804.4,2.78]
[1717089888981,0.0024543,3806.7,3805.8,2.62753]
[1717089889272,0.0024543,3806.7,3805.1,4.8306]
[1717089889273,0.0024543,3806.7,3806.0,2.62736]
[1717089889424,0.0024543,3806.7,3806.6,2.62701]
[1717089889626,0.0024543,3806.7,3806.6,2.889711]
[1717089889824,0.0024543,3806.7,3806.6,37.889711]
[1717089890225,0.0024543,3806.7,3806.1,2.62732]
[1717089890465,0.005,3806.2,3806.1,2.62732]
[1717089890629,0.005,3806.2,3806.1,37.62732]
[1717089893879,0.005,3806.2,3806.1,2.62732]
[1717089894030,0.005,3806.2,3806.1,12.85428]
[1717089894369,0.005,3806.2,3806.1,49.789708]
[1717089894570,0.0024543,3806.7,3806.6,6.40701]
[1717089894774,0.0024543,3806.7,3806.6,9.58402]
[1717089894975,0.005,3807.7,3807.6,2.62632]
[1717089895152,0.005,3807.7,3807.6,37.62632]
[1717089895348,0.005,3807.7,3807.6,40.27192763]
[1717089896073,0.005,3807.7,3807.6,2.62632]
[1717089896798,0.005,3807.7,3807.6,37.62632]
[1717089897997,2.62476,3809.9,3807.9,1.0]
[1717089898150,2.62476,3809.9,3807.9,1.0524932]
[1717089898550,2.62476,3809.9,3808.8,2.62544]
[1717089898746,2.62476,3809.9,3808.9,0.262544]
[1717089899147,0.1274828,3810.5,3808.9,0.262544]
[1717089899360,0.1274828,3810.5,3808.5,2.62566]
[1717089899361,4.9548,3810.4,3808.5,2.62566]
[1717089899673,2.62496,3809.6,3808.0,2.626]
[1717089899897,2.62573,3808.5,3807.6,4.0]
[1717089900115,5.17946,3810.3,3807.6,4.0]
[1717089900116,2.62593,3808.2,3807.6,4.0]
[1717089900392,4.9548,3808.4,3807.6,4.0]
[1717089900393,2.62608,3808.0,3807.6,4.0]
[1717089900887,2.62638,3807.6,3806.3,2.62715]
[1717089901053,2.62668,3807.1,3805.6,2.62764]
[1717089901236,2.62668,3807.1,3805.7,0.262764]
[1717089901990,2.62631,3807.7,3806.3,2.62718]
[1717089902138,2.62631,3807.7,3805.7,3.042764]
[1717089902340,2.62589,3808.3,3806.5,2.62704]
[1717089902577,2.62589,3808.3,3806.0,1.0]
[1717089902578,2.62589,3808.3,3806.7,2.62693]
[1717089902731,2.62589,3808.3,3806.9,2.62676]
[1717089902933,4.8868,3809.1,3807.4,2.6264]
[1717089903133,4.8868,3809.1,3807.8,2.62613]
[1717089903945,4.8868,3809.1,3807.3,2.62652]
[1717089903946,2.62539,3809.0,3807.3,2.62652]
[1717089904135,2.62595,3808.2,3806.7,2.62691]
[1717089904791,2.62622,3807.8,3806.7,2.62691]
[1717089904953,2.62589,3808.3,3806.7,2.62691]
[1717089905157,2.62589,3808.3,3806.9,2.62677]
[1717089905543,2.62589,3808.3,3807.0,0.05251778]
[1717089905736,2.62589,3808.3,3807.2,2.62658]
[1717089905941,2.62554,3808.8,3807.3,0.05251476]
[1717089906180,2.62554,3808.8,3806.9,4.6226]
[1717089906363,2.62585,3808.3,3807.0,0.59626694]
[1717089906572,2.62613,3807.9,3806.7,1.051108]
[1717089906775,2.62552,3808.8,3806.7,1.051108]
[1717089906937,2.62632,3807.7,3806.3,2.62717]
[1717089907139,2.62632,3807.7,3806.5,2.62704]
[1717089907391,2.62621,3807.8,3806.6,0.662704]
[1717089907767,7.40491,3807.8,3806.6,0.662704]
[1717089907961,7.40491,3807.8,3806.7,0.171389]
[1717089909569,7.40491,3807.8,3806.4,1.051186]
[1717089909739,2.62649,3807.4,3806.4,1.051186]
[1717089909941,4.9606,3807.3,3805.7,2.62761]
[1717089910180,4.9606,3807.3,3804.3,8.3]
[1717089910181,4.9606,3807.3,3805.4,1.051489]
[1717089910488,4.9606,3807.3,3805.5,4.0]
[1717089910641,5.45666,3807.3,3805.6,0.5051489]
[1717089910845,5.45666,3807.3,3805.4,1.051489]
[1717089911157,2.62709,3806.5,3805.4,1.051489]
[1717089911368,2.6274,3806.1,3804.7,6.30627]
[1717089911569,2.62705,3806.6,3805.1,2.62804]
[1717089911780,2.62672,3807.1,3805.7,2.62758]
[1717089911982,4.9606,3807.3,3805.7,2.62758]
[1717089912292,2.62694,3806.7,3805.2,11.242216]
[1717089912588,2.62694,3806.7,3805.6,2.62769]
[1717089912739,4.9606,3807.3,3805.6,2.62769]
[1717089912740,2.62666,3807.2,3805.6,2.62769]
[1717089912941,2.62666,3807.2,3805.8,2.62751]
[1717089913549,2.62666,3807.2,3806.2,2.62728]
[1717089914469,4.9055,3808.4,3806.6,2.62701]
[1717089914677,2.62598,3808.1,3806.9,2.62674]
[1717089914891,2.62598,3808.1,3807.0,0.05251968]
[1717089915049,4.9055,3808.4,3807.1,2.62662]
[1717089915251,4.9055,3808.4,3807.2,0.05251554]
[1717089915595,2.62568,3808.6,3807.3,2.62647]
[1717089915778,2.62568,3808.6,3807.6,2.62625]
[1717089916108,7.39605,3809.1,3807.6,2.62625]
[1717089916395,7.39605,3809.1,3808.0,2.62599]
[1717089916549,2.62535,3809.1,3808.0,2.62599]
[1717089917054,2.62535,3809.1,3807.7,0.262625]
[1717089917259,2.62558,3808.7,3807.0,2.62668]
[1717089917593,2.6252,3809.3,3807.8,2.62614]
[1717089918458,2.62545,3808.9,3807.8,2.62614]
[1717089918665,4.8874,3809.8,3807.9,0.05251059]
[1717089918971,2.62544,3808.9,3807.6,2.62628]
[1717089919326,7.57611,3808.5,3807.2,7.3]
[1717089919598,8.333721,3808.5,3807.1,2.62661]
[1717089919818,2.62603,3808.1,3807.2,4.0]
[1717089919983,2.62603,3808.1,3806.6,2.62695]
[1717089920331,2.62603,3808.1,3806.5,7.3]
[1717089920332,2.62603,3808.1,3806.9,2.62679]
[1717089920456,2.62532,3809.1,3807.0,0.05251856]
[1717089920662,2.62532,3809.1,3807.1,0.05251011]
[1717089920866,2.62532,3809.1,3806.8,4.0525086]
[1717089921107,2.62532,3809.1,3806.9,0.90399736]
[1717089921482,2.62532,3809.1,3807.8,2.62617]
[1717089921817,4.8281,3809.2,3808.1,2.62596]
[1717089922109,4.941,3810.0,3808.5,2.62569]
[1717089922283,4.941,3810.0,3808.7,2.62551]
[1717089922812,2.7518028,3810.5,3808.7,1.050583]
[1717089923112,2.7518028,3810.5,3808.9,2.6254]
[1717089923715,2.62462,3810.1,3808.7,1.050583]
[1717089923921,2.62462,3810.1,3808.6,0.262569]
[1717089924195,0.1274828,3810.5,3808.4,3.676408]
[1717089924504,0.1274828,3810.5,3808.4,2.62572]
[1717089924812,2.62471,3810.0,3808.4,2.62572]
[1717089924967,2.62471,3810.0,3808.7,2.62555]
[1717089925495,2.7518628,3810.5,3809.1,2.62527]
[1717089925674,2.62463,3810.1,3809.1,2.62527]
[1717089925867,0.1274828,3810.5,3809.1,2.62527]
[1717089926708,0.1274828,3810.5,3809.8,2.62478]
[1717089927017,0.1274828,3810.5,3809.1,2.62527]
[1717089927018,0.1274828,3810.5,3810.0,2.62461]
[1717089928292,0.1274828,3810.5,3809.2,4.0]
[1717089928496,0.1274828,3810.5,3809.5,2.62495]
[1717089928814,0.1274828,3810.5,3809.9,2.62467]
[1717089929833,2.62447,3810.3,3808.9,2.62539]
[1717089930045,2.62476,3809.9,3808.9,2.62539]
[1717089930206,7.62746,3810.4,3808.9,2.62539]
[1717089930541,0.1274828,3810.5,3808.8,4.0]
[1717089930751,0.1274828,3810.5,3809.2,2.62516]
[1717089930752,2.7518128,3810.5,3809.2,2.62516]
[1717089931035,2.7518128,3810.5,3808.7,9.92551]
[1717089931036,2.62465,3810.1,3808.7,9.92551]
[1717089931920,2.62477,3809.9,3808.7,9.92551]
[1717089932125,2.62477,3809.9,3808.7,7.3]
[1717089932747,2.62477,3809.9,3808.8,2.62548]
[1717089932944,2.62443,3810.4,3808.9,5.623548]
[1717089933155,2.62443,3810.4,3808.8,2.62545]
[1717089933439,2.62463,3810.1,3808.5,0.54380412]
[1717089933598,4.6851,3810.3,3809.4,2.62503]
[1717089933799,4.6851,3810.3,3809.4,2.887533]
[1717089934299,7.30962,3810.3,3808.9,2.62538]
[1717089934720,7.30962,3810.3,3809.3,2.62514]
[1717089936257,0.1274828,3810.5,3809.7,2.62487]
[1717089936429,0.1274828,3810.5,3808.7,7.3]
[1717089936635,2.7518728,3810.5,3809.4,2.62503]
[1717089936835,0.1274828,3810.5,3809.8,2.62478]
[1717089937159,0.1274828,3810.5,3810.1,2.62455]
[1717089937513,0.1274828,3810.5,3810.2,1.050166]
[1717089937756,0.1274828,3810.5,3810.3,2.62446]
[1717089939016,0.1274828,3810.5,3810.3,3.674625]
[1717089939371,4.8927,3812.2,3811.0,2.62398]
[1717089939532,2.62274,3812.8,3811.0,2.62398]
[1717089940214,2.62212,3813.7,3812.1,2.62322]
[1717089940416,0.0838502,3814.7,3813.6,5.0025]
[1717089940724,0.0838502,3814.7,3814.3,2.62171]
[1717089941042,0.0838502,3814.7,3814.5,2.62157]
[1717089941251,0.0838502,3814.7,3814.6,1.28468784]
[1717089941453,0.0838502,3814.7,3814.6,3.51102673]
[1717089941784,0.0838502,3814.7,3814.5,2.62157]
[1717089942144,0.0838502,3814.7,3813.9,2.62195]
[1717089942145,5.1213502,3814.7,3813.9,2.62195]
[1717089942343,5.1213502,3814.7,3813.3,5.3]
[1717089942344,0.07934275,3814.7,3814.6,2.6215]
[1717089942553,0.00788744,3816.9,3815.2,2.62106]
[1717089942735,0.00788744,3816.9,3815.7,1.0]
[1717089942934,0.00788744,3816.9,3816.0,2.6205]
[1717089943152,0.00788744,3816.9,3815.3,2.621]
[1717089943366,0.00788744,3816.9,3816.1,2.62047]
[1717089943763,0.00788744,3816.9,3815.4,2.62094]
[1717089943991,0.00788744,3816.9,3814.6,1.0]
[1717089943992,4.6331,3816.8,3814.6,2.62146]
[1717089944291,2.62009,3816.7,3814.6,2.62146]
[1717089944502,0.72610774,3816.6,3814.6,2.62146]
[1717089944664,2.62031,3816.4,3814.6,2.62146]
[1717089944864,2.62044,3816.2,3814.6,2.62146]
[1717089945069,0.72610774,3816.6,3813.9,2.62196]
[1717089945070,2.62078,3815.7,3813.9,2.62196]
[1717089945251,4.8863,3815.5,3813.2,2.62244]
[1717089945768,2.62106,3815.3,3813.2,2.62244]
[1717089946096,2.62131,3814.9,3813.2,2.62244]
[1717089946252,2.62131,3814.9,3812.5,2.62289]
[1717089946457,3.0,3815.2,3812.5,2.9114112]
[1717089946458,2.62162,3814.5,3812.5,2.9114112]
[1717089946652,2.62099,3815.4,3813.9,2.62197]
[1717089946983,2.62099,3815.4,3812.5,0.2885212]
[1717089946984,2.62136,3814.9,3813.2,2.6224]
[1717089947198,2.62162,3814.5,3812.6,2.62287]
[1717089947404,2.62162,3814.5,3813.2,2.62244]
[1717089947579,3.0,3814.8,3813.3,0.05243147]
[1717089947903,3.0,3814.8,3813.2,2.884684]
[1717089947904,2.62154,3814.6,3813.2,2.61744]
[1717089948365,2.62167,3814.4,3812.6,2.62284]
[1717089948560,2.6219,3814.1,3812.0,2.62325]
[1717089948965,2.62205,3813.8,3812.3,2.62304]
[1717089950755,7.54315,3813.8,3812.3,2.62304]
[1717089950956,7.54315,3813.8,3812.7,35.0]
[1717089951355,2.62241,3813.3,3812.7,35.0]
[1717089951995,4.9211,3813.8,3812.7,35.0]
[1717089952267,2.6222,3813.6,3812.7,35.0]
[1717089952791,2.62256,3813.1,3812.7,35.0]
[1717089952998,2.62256,3813.1,3811.1,2.62385]
[1717089953372,2.62256,3813.1,3811.8,2.62341]
[1717089953544,2.62215,3813.7,3812.2,35.0]
[1717089953840,2.62215,3813.7,3812.3,2.62307]
[1717089954593,2.62215,3813.7,3810.7,9.78]
[1717089954594,2.62215,3813.7,3812.4,35.0]
[1717089955649,2.62248,3813.2,3812.4,35.0]
[1717089957299,2.62213,3813.7,3812.4,1.07936278]
[1717089957493,2.62213,3813.7,3812.2,2.62314]
[1717089957696,2.62179,3814.2,3812.6,2.62282]
[1717089957924,2.62179,3814.2,3813.4,35.0]
[1717089958235,2.62179,3814.2,3813.1,2.62252]
[1717089958434,4.9907,3814.8,3813.4,2.62227]
[1717089958435,7.61212,3814.8,3813.4,2.62227]
[1717089958635,2.62104,3815.3,3813.6,2.62214]
[1717089958809,2.62104,3815.3,3814.6,35.0]
[1717089959446,2.6207,3815.8,3814.5,2.62154]
[1717089959803,2.6207,3815.8,3815.2,35.0]
[1717089961714,2.62099,3815.4,3815.2,35.0]
[1717089962195,0.26207,3815.8,3815.2,35.0]
[1717089962640,3.0,3816.3,3815.2,35.0]
[1717089962938,2.62079,3815.7,3815.2,35.0]
[1717089964616,2.62118,3815.1,3814.0,2.6219]
[1717089965244,2.62131,3814.9,3814.6,35.0]
[1717089965743,2.621,3815.4,3814.6,35.0]
[1717089966214,2.62096,3815.4,3813.5,0.26747072]
[1717089966406,2.62096,3815.4,3814.2,2.62173]
[1717089966750,2.62096,3815.4,3812.6,10.3]
[1717089966751,2.62096,3815.4,3815.1,35.0]
[1717089967455,3.0,3816.0,3815.1,35.0]
[1717089967456,2.62067,3815.9,3815.1,35.0]
[1717089967658,2.62067,3815.9,3814.5,2.62156]
[1717089967836,2.62067,3815.9,3814.8,2.62135]
[1717089968010,2.62067,3815.9,3815.8,35.0]
[1717089968759,2.62033,3816.4,3815.8,35.0]
[1717089970714,2.62054,3816.1,3815.8,35.0]
[1717089970958,2.62061,3815.9,3815.8,35.0]
[1717089972265,2.62058,3816.0,3815.8,35.0]
[1717089973377,2.62058,3816.0,3814.9,2.62123]
[1717089973730,2.62058,3816.0,3815.7,35.0]
[1717089973969,2.62058,3816.0,3814.9,2.62123]
[1717089974427,0.00788744,3816.9,3814.8,1.048996]
[1717089974428,0.005,3816.6,3815.3,2.62102]
[1717089974660,0.005,3816.6,3815.6,2.62076]
[1717089974968,0.005,3816.6,3815.1,2.62112]
[1717089974969,2.62021,3816.5,3815.1,2.62112]
[1717089975174,2.62021,3816.5,3815.3,2.621]
[1717089975386,0.005,3816.6,3816.4,35.0]
[1717089975877,0.005,3816.6,3816.0,2.62051]
[1717089976179,0.00788744,3816.9,3816.8,2.56999]
[1717089976479,0.00788744,3816.9,3816.2,2.6204]
[1717089976480,0.00181493,3818.0,3817.3,2.61963]
[1717089976772,0.00181493,3818.0,3817.8,35.0]
[1717089977068,2.62099493,3818.0,3817.8,35.0]
[1717089977224,2.61952,3817.5,3816.3,2.62028]
[1717089977881,0.00181493,3818.0,3816.9,35.0]
[1717089978087,2.62525,3817.9,3816.9,35.0]
[1717089978237,2.90070477,3817.9,3816.3,2.62027]
[1717089978679,2.62525,3817.9,3817.5,35.0]
[1717089979739,2.61955,3817.5,3815.8,2.62062]
[1717089979942,2.61979,3817.1,3815.8,2.62062]
[1717089980246,2.61979,3817.1,3815.2,1.34765226]
[1717089980247,2.62006,3816.7,3815.9,35.0]
[1717089980769,0.261979,3817.1,3815.2,0.29881426]
[1717089980770,2.6204,3816.3,3815.2,0.29881426]
[1717089981071,2.62062,3815.9,3815.0,1.04891]
[1717089981235,2.62062,3815.9,3815.3,35.0]
[1717089981431,2.62034,3816.3,3815.3,35.0]
[1717089981640,2.62069,3815.8,3815.3,35.0]
[1717089982434,2.62042,3816.2,3815.3,35.0]
[1717089983029,2.62042,3816.2,3815.0,2.62116]
[1717089983030,2.61995,3816.9,3815.7,2.6207]
[1717089983232,2.61995,3816.9,3815.0,4.945]
[1717089983484,2.61995,3816.9,3815.9,2.62057]
[1717089983773,2.61995,3816.9,3815.8,35.0]
[1717089983979,2.61995,3816.9,3815.5,2.62087]
[1717089984191,4.8484,3817.8,3815.5,2.62087]
[1717089984483,4.8484,3817.8,3816.0,35.0]
[1717089984484,2.62017,3816.6,3816.0,35.0]
[1717089985011,2.62073,3815.8,3814.3,2.62165]
[1717089985164,2.62073,3815.8,3814.8,4.0]
[1717089985369,2.62073,3815.8,3815.3,35.0]
[1717089986811,2.62094,3815.5,3815.3,35.0]
[1717089987786,2.62062,3815.9,3815.3,35.0]
[1717089987987,2.62035,3816.3,3815.3,35.0]
[1717089988392,2.6206,3816.0,3815.3,35.0]
[1717089988966,2.6206,3816.0,3814.6,2.62149]
[1717089989199,2.6206,3816.0,3814.7,0.3670607]
[1717089989398,3.0,3817.2,3814.7,0.3670607]
[1717089989399,4.7351,3817.9,3815.2,1.0]
[1717089989602,4.7351,3817.9,3816.6,2.62008]
[1717089989603,2.61939,3817.7,3816.6,2.62008]
[1717089989799,2.61939,3817.7,3816.6,2.882088]
[1717089990383,2.61939,3817.7,3817.4,35.0]
[1717089991487,0.006,3817.9,3817.5,0.05238952]
[1717089991671,0.006,3817.9,3816.6,0.262008]
[1717089991877,0.006,3817.9,3817.8,37.6193]
[1717089992081,0.006,3817.9,3817.8,40.26490763]
[1717089994475,0.006,3817.9,3817.8,37.6193]
[1717089994679,0.006,3817.9,3817.8,35.0]
[1717089997034,2.61932,3817.8,3816.8,2.61994]
[1717089997534,0.27358757,3818.8,3818.3,1.0]
[1717089997816,0.05850153,3820.0,3818.5,2.61879]
[1717089998015,0.05850153,3820.0,3817.3,1.0]
[1717089998016,2.69943376,3819.7,3818.0,2.61912]
[1717089998215,2.69943376,3819.7,3819.2,35.0]
[1717089998625,0.08137376,3819.7,3819.2,35.0]
[1717089999295,2.61808,3819.6,3819.2,35.0]
[1717089999721,7.4279,3819.3,3817.7,2.61934]
[1717090000021,2.6186,3818.9,3817.7,2.61934]
[1717090000226,2.6186,3818.9,3818.2,35.0]
[1717090000537,2.61887,3818.5,3818.2,35.0]
[1717090000677,0.74279,3819.2,3816.6,0.262008]
[1717090000883,7.4279,3819.3,3816.6,0.262008]
[1717090000884,2.61876,3818.6,3816.6,0.262008]
[1717090001277,2.61876,3818.6,3817.0,35.0]
[1717090001474,2.61876,3818.6,3817.2,4.0]
[1717090001743,2.61906,3818.2,3817.1,2.61973]
[1717090003907,2.61884,3818.5,3816.9,2.61985]
[1717090004120,2.61884,3818.5,3817.2,1.04834]
[1717090004424,2.61884,3818.5,3817.4,35.0]
[1717090004624,2.61884,3818.5,3817.5,2.64560763]
[1717090005119,2.61884,3818.5,3817.3,2.61963]
[1717090005416,2.61884,3818.5,3817.6,35.0]
[1717090007539,2.61911,3818.1,3817.6,35.0]
[1717090008431,2.61911,3818.1,3817.2,1.04834]
[1717090008788,2.61911,3818.1,3817.8,35.0]
[1717090008992,2.61903,3818.3,3817.8,35.0]
[1717090009296,0.261903,3818.3,3817.8,35.0]
[1717090009496,4.9279,3818.9,3817.8,35.0]
[1717090009712,0.27358891,3818.9,3817.0,1.048419]
[1717090009903,0.27358891,3818.9,3817.2,2.61965]
[1717090010080,2.61896,3818.4,3817.0,1.048419]
[1717090010278,2.61896,3818.4,3818.0,35.0]
[1717090010796,2.880856,3818.4,3818.0,35.0]
[1717090011112,2.61903,3818.2,3818.0,35.0]
[1717090012622,2.61944,3817.7,3816.6,0.262008]
[1717090012849,2.61944,3817.7,3816.6,1.048508]
[1717090013126,2.61944,3817.7,3817.1,35.0]
[1717090013425,2.61911,3818.1,3817.1,35.0]
[1717090014332,2.61911,3818.1,3817.2,2.64560763]
[1717090014515,2.61911,3818.1,3816.7,2.62006]
[1717090014910,2.61911,3818.1,3817.3,35.0]
[1717090017013,2.61911,3818.1,3816.7,2.62006]
[1717090017386,2.61911,3818.1,3817.7,35.0]
[1717090021128,2.61968,3817.3,3816.2,2.62035]
[1717090021330,2.61844,3819.1,3816.3,0.262035]
[1717090021529,2.61894,3818.4,3818.2,35.0]
[1717090021738,2.61943,3817.7,3817.2,1.048372]
[1717090021908,2.61943,3817.7,3816.7,2.62005]
[1717090022105,2.61943,3817.7,3816.8,0.262005]
[1717090022328,2.61943,3817.7,3817.5,35.0]
[1717090023219,2.61914,3818.1,3817.5,35.0]
[1717090023433,2.61975,3817.2,3815.7,2.62071]
[1717090023752,2.61975,3817.2,3815.8,4.0]
[1717090023753,0.261975,3817.2,3815.8,4.0]
[1717090023982,2.61978,3817.1,3817.0,35.0]
[1717090024114,4.62324,3817.9,3815.7,1.794751]
[1717090024115,2.61955,3817.5,3815.7,1.794751]
[1717090024317,2.61955,3817.5,3814.7,5.4638607]
[1717090024318,2.62012,3816.7,3815.1,2.62111]
[1717090024618,2.62012,3816.7,3815.9,35.0]
[1717090024816,2.62033,3816.4,3815.9,35.0]
[1717090026347,2.62033,3816.4,3815.7,1.048742]
[1717090026533,2.62033,3816.4,3815.4,2.62089]
[1717090026860,2.62033,3816.4,3816.3,35.0]
[1717090027063,2.61995,3816.9,3816.3,35.0]
[1717090027274,2.62017,3816.6,3816.3,35.0]
[1717090029667,2.62002,3816.8,3816.0,2.62052]
[1717090029820,2.004,3817.5,3815.7,2.62073]
[1717090029821,2.62015,3816.6,3815.7,2.62073]
[1717090030029,2.62015,3816.6,3815.7,0.3931609]
[1717090030343,2.62015,3816.6,3816.1,35.0]
[1717090030768,2.62015,3816.6,3815.5,1.310879]
[1717090030769,2.6199,3817.0,3815.9,2.62058]
[1717090030920,2.61962,3817.4,3815.6,2.62079]
[1717090031122,2.61935,3817.8,3815.9,5.2392]
[1717090031378,2.61935,3817.8,3817.1,35.0]
[1717090031555,2.61963,3817.4,3817.1,35.0]
[1717090035114,5.23926,3817.4,3817.1,35.0]
[1717090035251,2.004,3818.0,3815.5,1.04879]
[1717090035252,2.62028,3816.4,3815.5,1.04879]
[1717090035467,2.62028,3816.4,3815.5,3.66966]
[1717090035648,2.62028,3816.4,3816.3,35.0]
[1717090035955,2.62004,3816.8,3816.3,35.0]
[1717090036258,2.62023,3816.5,3815.7,2.62075]
[1717090036455,2.62023,3816.5,3815.7,3.0244006]
[1717090036793,2.62023,3816.5,3816.4,35.0]
[1717090038296,4.62363,3817.4,3815.7,0.4036506]
[1717090038297,2.62044,3816.2,3815.7,0.4036506]
[1717090038498,2.62044,3816.2,3815.5,1.04879]
[1717090038727,2.61983,3817.1,3815.0,2.62116]
[1717090038888,2.61983,3817.1,3814.8,9.62534]
[1717090039221,2.004,3817.9,3815.8,2.62061]
[1717090039222,2.62001,3816.8,3815.8,2.62061]
[1717090039424,2.62001,3816.8,3815.8,2.882671]
[1717090039976,2.62001,3816.8,3815.8,2.62061]
[1717090040219,2.62001,3816.8,3815.6,1.048745]
[1717090041070,2.62001,3816.8,3815.4,2.62093]
[1717090041275,2.62024,3816.5,3815.4,2.62093]
[1717090041925,2.62024,3816.5,3815.5,1.048776]
[1717090042298,2.62024,3816.5,3815.4,2.62093]
[1717090042623,2.62024,3816.5,3815.4,3.931851]
[1717090042800,2.62043,3816.2,3815.4,3.931851]
[1717090042985,2.62043,3816.2,3815.4,3.669758]
[1717090043179,2.62043,3816.2,3815.4,1.048828]
[1717090043381,2.61977,3817.2,3814.8,4.0]
[1717090043382,2.62065,3815.9,3814.8,4.0]
[1717090043809,2.62065,3815.9,3814.8,2.62134]
[1717090044216,2.62065,3815.9,3814.9,1.048927]
[1717090044430,2.62065,3815.9,3815.0,0.40373277]
[1717090045630,7.3448,3816.4,3814.8,2.62134]
[1717090045824,7.3448,3816.4,3814.8,3.670319]
[1717090046139,0.01731734,3816.3,3814.8,2.62134]
[1717090046279,0.73621173,3816.2,3814.8,2.62134]
[1717090046483,2.62078,3815.7,3814.7,0.3670607]
[1717090046677,2.62078,3815.7,3814.6,1.049009]
[1717090046982,2.62115,3815.2,3813.7,5.0499]
[1717090047179,2.62115,3815.2,3814.3,1.049108]
[1717090047810,2.62115,3815.2,3813.9,4.0]
[1717090048007,2.62115,3815.2,3814.1,2.62181]
[1717090048178,2.62134,3814.9,3814.0,1.954117]
[1717090048623,5.3408,3816.4,3814.1,6.34282833]
[1717090048841,4.8728,3817.1,3814.1,8.34682833]
[1717090049045,2.62023,3816.5,3815.5,2.62084]
[1717090049227,2.61995,3816.9,3815.5,2.62084]
[1717090049546,2.61995,3816.9,3815.7,2.62069]
[1717090050342,2.62017,3816.6,3815.7,2.62069]
[1717090050746,2.62017,3816.6,3815.3,2.62099]
[1717090051148,2.62041,3816.2,3814.9,2.62126]
[1717090051909,2.62041,3816.2,3815.3,2.62099]
[1717090053042,2.62041,3816.2,3814.9,2.62126]
[1717090053449,2.62041,3816.2,3815.2,2.62105]
[1717090054059,2.62064,3815.9,3814.8,2.62133]
[1717090054432,2.62086,3815.6,3814.4,2.62161]
[1717090054633,2.62106,3815.3,3814.5,4.0]
[1717090054831,2.62106,3815.3,3814.4,2.62161]
[1717090055058,2.62076,3815.7,3814.4,2.62161]
[1717090055264,2.62076,3815.7,3814.6,2.62149]
[1717090057681,2.621,3815.4,3814.5,0.42782085]
[1717090057881,2.621,3815.4,3814.2,2.62175]
[1717090058069,2.621,3815.4,3813.4,10.5025]
[1717090058070,2.62121,3815.1,3813.8,2.62202]
[1717090059177,2.62137,3814.8,3813.8,2.62202]
[1717090059989,2.62151,3814.6,3813.4,7.82481]
[1717090060283,2.62151,3814.6,3813.4,2.62231]
[1717090060589,2.62151,3814.6,3813.5,1.311552]
[1717090061086,2.62174,3814.3,3813.5,1.311552]
[1717090062948,0.01731734,3814.2,3813.5,1.049321]
[1717090063482,2.62174,3814.3,3813.5,1.049321]
[1717090064118,2.62174,3814.3,3813.0,2.62258]
[1717090064432,2.62196,3814.0,3813.1,1.049455]
[1717090065482,2.62196,3814.0,3813.2,0.3672035]
[1717090065936,2.62164,3814.5,3813.3,2.62236]
[1717090067784,2.62183,3814.2,3813.2,0.3672035]
[1717090068923,2.62202,3813.9,3813.2,0.3672035]
[1717090069129,1.506,3813.6,3811.4,5.0478]
[1717090069703,1.506,3813.6,3811.1,12.25561538]
[1717090069704,2.62273,3812.9,3811.6,2.62355]
[1717090070028,1.506,3812.8,3812.5,1.049661]
[1717090070416,4.9191,3813.5,3811.2,3.6238]
[1717090070417,2.62227,3813.5,3811.2,3.6238]
[1717090070590,2.62227,3813.5,3812.5,1.049665]
[1717090070786,2.62199,3813.9,3812.8,2.6227]
[1717090071028,2.62199,3813.9,3812.5,1.049665]
[1717090071029,2.62174,3814.3,3813.1,2.62248]